{"text_format":"1","workbook":"xlsx","n_sheets":3,"sheets":["было","тест","стало"],"not_rendered":{"charts":0,"images":0,"macros":1,"external_links":0,"defined_names":2,"comments":0,"pivot_tables":0},"unopened":[],"bounds":{"document_bytes":16777216,"sheet_cells":100000,"rows_first":2000,"rows_last":500,"rows_between":2000,"halvings":0,"cell_chars":16384,"cell_head_chars":4096},"cells_cut":0,"cells_raw":0,"read":"whole","date_system":"1900"}

{"sheet":"было","index":0,"n_rows":40,"n_cols":12,"rows_kept":40,"cut":false,"hidden":false,"merged":[]}
[]
[]
[]
[]
[]
[]
[]
[]
[]
[]
[]
[]
[]
[]
[]
[]
[null,null,null,null,null,null,null,null,null,null,null,{"$f":"IF(ISBLANK(I20),\"НЕТ СТОИМОСТНЫХ МАТЕРИАЛОВ!\",\"\")","v":""}]
["П/п","Наименование ресурса","Единица измерения","Расход по норме","Фактич. количество","Экономия (+), перерасход (-)","Списать на себестоимость","Код материала","Цена за ед в базе","Цена за ед в текущих","Всего в текущих ценах","Всего в базе"]
[1,2,3,4,5,6,7,8,9,10,11,12]
[1,"Грунт-эмаль \"СБЭ-111\"Унипол марки Б\" ТУ 2312-001-59846005-2003","кг",579.16099999999994,null,null,null,null,134.54,{"$f":"I20*J$17","v":0},{"$f":"J20*D20","v":0},77920.320000000007]
[{"$f":"IF($B21=\"\",\"\",MAX($A$20:A20)+1)","v":2},"Кислород","м3",43.315600000000003,null,null,null,null,null,{"$f":"I21*J$17","v":0},{"$f":"J21*D21","v":0}]
[{"$f":"IF($B22=\"\",\"\",MAX($A$20:A21)+1)","v":3},"Уайт-спирит","т",0.46300000000000002,null,null,null,null,null,{"$f":"I22*J$17","v":0},{"$f":"J22*D22","v":0}]
[{"$f":"IF($B23=\"\",\"\",MAX($A$20:A40)+1)","v":4},"Электроды","т",0.11260000000000001,null,null,null,null,null,{"$f":"I23*J$17","v":0},{"$f":"J23*D23","v":0}]
[{"$f":"IF($B24=\"\",\"\",MAX($A$20:A23)+1)","v":5},"Ветошь","кг",72.400000000000006,null,null,null,null,null,0,0]
[{"$f":"IF($B25=\"\",\"\",MAX($A$20:A24)+1)","v":6},"Трубы стальные электросварные прямошовные и спирально-шовные больших диаметров группы А и Б с сопротивлением по разрыву 38 кгс/мм2 наружный диаметр 530 мм толщина стенки 10 мм","м",2.3090000000000002,null,null,null,null,null,0,0]
[{"$f":"IF($B26=\"\",\"\",MAX($A$20:A25)+1)","v":7},"Трубы стальные бесшовные горячедеформированные O159х8 ГОСТ 8732-78, 8731-74В, 100% УЗК, гарантия гидродавления, при тл. стенки более или равно 5мм фаска, сталь 09Г2С","т",1.6080000000000001,null,null,null,null,39211.760000000002,0,0,63052.51]
[{"$f":"IF($B27=\"\",\"\",MAX($A$20:A26)+1)","v":8},"Трубы стальные бесшовные горячедеформированные, ГОСТ 8732-78, ГОСТ 8731-74, наружный диаметр (толщина стенки) -219(8) мм, из стали марки 09Г2С.","т",115.628,null,null,null,null,36696.6,0,0,4243154.46]
[{"$f":"IF($B28=\"\",\"\",MAX($A$20:A27)+1)","v":9},"Трубы стальные бесшовные горячедеформированные, ГОСТ 8732-78, ГОСТ 8731-74, наружный диаметр (толщина стенки) -426(8) мм, из стали марки 09Г2С.","т",24.698,null,null,null,null,38158.9,0,0,942448.51]
[{"$f":"IF($B29=\"\",\"\",MAX($A$20:A28)+1)","v":10},"Трубы стальные бесшовные горячедеформированные, ГОСТ 8732-78, ГОСТ 8731-74, наружный диаметр (толщина стенки) -325(9) мм, из стали марки 09Г2С.(д.325х8 мм)","т",10.693,null,null,null,null,34675.379999999997,0,0,370783.84]
[{"$f":"IF($B30=\"\",\"\",MAX($A$20:A29)+1)","v":11},"Трубы бесшовные обсадные из стали группы Д и Б с короткой треугольной резьбой наружный диаметр 273 мм толщина стенки 10,2 мм","м",0.48799999999999999,null,null,null,null,null,0,0]
[{"$f":"IF($B31=\"\",\"\",MAX($A$20:A30)+1)","v":12},"Трубы бесшовные обсадные из стали группы Д и Б с короткой треугольной резьбой наружный диаметр 324 мм толщина стенки 11 мм","м",26.63,null,null,null,null,null,0,0]
[{"$f":"IF($B32=\"\",\"\",MAX($A$20:A31)+1)","v":13},"Песок металлический","т",8.6869999999999994,null,null,null,null,null,0,0]
[{"$f":"IF($B33=\"\",\"\",MAX($A$20:A32)+1)","v":14},"Бетон тяжелый, крупность заполнителя 20 мм, класс В 20 (М250)","м3",71.013999999999996,null,null,null,null,12199.47,0,0,866333.16]
[{"$f":"IF($B34=\"\",\"\",MAX($A$20:A33)+1)","v":15},"Дополнительные расходы на транспортировку 1 тонны материалов поставки...","т",-327.95530000000002,null,null,null,null,265.79000000000002,0,0,-86825.75]
[{"$f":"IF($B35=\"\",\"\",MAX($A$20:A34)+1)","v":16},"Дополнительные расходы на транспортировку 1 тонны материалов поставки подрядчиа,сверх учтенных 200 км (расстояние транспортировки 157 км, 3 класс грузов)","т",-0.58709999999999996,null,null,null,null,443.87,0,0,-260.60000000000002]
[{"$f":"IF($B36=\"\",\"\",MAX($A$20:A35)+1)","v":17},"Дополнительные расходы на транспортировку 1 тонны материалов поставки подрядчиа,сверх учтенных 200 км (расстояние транспортировки 157 км,2 класс грузов)","т",-0.94,null,null,null,null,332.24,0,0,-312.31]
[{"$f":"IF($B37=\"\",\"\",MAX($A$20:A36)+1)","v":18},"Дополнительные расходы на транспортировку 1 тонны материалов поставки подрядчика,сверх учтенных 200 км (расстояние транспортировки 157 км,1 класс грузов, кроме м/к)","т",-170.44239999999999,null,null,null,null,265.79000000000002,0,0,-45301.89]
[{"$f":"IF($B38=\"\",\"\",MAX($A$20:A37)+1)","v":19},"Дополнительные расходы на транспортировку 1 тонны материалов поставки подрядчика,сверх учтенных 200 км (расстояние транспортировки 157 км,1 класс грузов, м/к)","т",-155.98580000000001,null,null,null,null,262.52999999999997,0,0,-40950.949999999997]
[{"$f":"IF($B39=\"\",\"\",MAX($A$20:A38)+1)","v":20},"Дополнительные расходы на транспортировку 1 тонны материалов поставки,сверх учтенных 200 км (расстояние транспортировки 157 км, работающими вне карьеров)","т",null,null,null,null,null,299.13,0,0]
[{"$f":"IF($B40=\"\",\"\",MAX($A$20:A39)+1)","v":21},"Затраты на транспортировку материалов от ж/д станции Ево-Яха до объекта строительства(расстояние транспортировки 157 км, антикорозийные лакокрасочные материалы состава АРСЕТ-Газ-2)","т",0.57920000000000005,null,null,null,null,1096.73,0,0,635.23]

{"sheet":"тест","index":1,"n_rows":40,"n_cols":12,"rows_kept":40,"cut":false,"hidden":false,"merged":[]}
[]
[]
[]
[]
[]
[]
[]
[]
[]
[]
[]
[]
[]
[]
[]
[]
[null,null,null,null,null,null,null,null,null,null,null,{"$f":"IF(ISBLANK(I20),\"НЕТ СТОИМОСТНЫХ МАТЕРИАЛОВ!\",\"\")","v":""}]
["П/п","Наименование ресурса","Единица измерения","Расход по норме","Фактич. количество","Экономия (+), перерасход (-)","Списать на себестоимость","Код материала","Цена за ед в базе","Цена за ед в текущих","Всего в текущих ценах","Всего в базе"]
[1,2,3,4,5,6,7,8,9,10,11,12]
[1,"Грунт-эмаль \"СБЭ-111\"Унипол марки Б\" ТУ 2312-001-59846005-2003","кг",579.16099999999994,null,null,null,null,134.54,{"$f":"I20*J$17","v":0},{"$f":"J20*D20","v":0},77920.320000000007]
[2,"Трубы стальные бесшовные горячедеформированные O159х8 ГОСТ 8732-78, 8731-74В, 100% УЗК, гарантия гидродавления, при тл. стенки более или равно 5мм фаска, сталь 09Г2С","т",1.6080000000000001,null,null,null,null,39211.760000000002,{"$f":"I21*J$17","v":0},{"$f":"J21*D21","v":0},63052.51]
[3,"Трубы стальные бесшовные горячедеформированные, ГОСТ 8732-78, ГОСТ 8731-74, наружный диаметр (толщина стенки) -219(8) мм, из стали марки 09Г2С.","т",115.628,null,null,null,null,36696.6,0,0,4243154.46]
[4,"Трубы стальные бесшовные горячедеформированные, ГОСТ 8732-78, ГОСТ 8731-74, наружный диаметр (толщина стенки) -426(8) мм, из стали марки 09Г2С.","т",24.698,null,null,null,null,38158.9,0,0,942448.51]
[5,"Трубы стальные бесшовные горячедеформированные, ГОСТ 8732-78, ГОСТ 8731-74, наружный диаметр (толщина стенки) -325(9) мм, из стали марки 09Г2С.(д.325х8 мм)","т",10.693,null,null,null,null,34675.379999999997,0,0,370783.84]
[6,"Бетон тяжелый, крупность заполнителя 20 мм, класс В 20 (М250)","м3",71.013999999999996,null,null,null,null,12199.47,0,0,866333.16]
[7,"Дополнительные расходы на транспортировку 1 тонны материалов поставки...","т",-327.95530000000002,null,null,null,null,265.79000000000002,0,0,-86825.75]
[8,"Дополнительные расходы на транспортировку 1 тонны материалов поставки подрядчиа,сверх учтенных 200 км (расстояние транспортировки 157 км, 3 класс грузов)","т",-0.58709999999999996,null,null,null,null,443.87,0,0,-260.60000000000002]
[9,"Дополнительные расходы на транспортировку 1 тонны материалов поставки подрядчиа,сверх учтенных 200 км (расстояние транспортировки 157 км,2 класс грузов)","т",-0.94,null,null,null,null,332.24,0,0,-312.31]
[10,"Дополнительные расходы на транспортировку 1 тонны материалов поставки подрядчика,сверх учтенных 200 км (расстояние транспортировки 157 км,1 класс грузов, кроме м/к)","т",-170.44239999999999,null,null,null,null,265.79000000000002,0,0,-45301.89]
[11,"Дополнительные расходы на транспортировку 1 тонны материалов поставки подрядчика,сверх учтенных 200 км (расстояние транспортировки 157 км,1 класс грузов, м/к)","т",-155.98580000000001,null,null,null,null,262.52999999999997,0,0,-40950.949999999997]
[12,"Дополнительные расходы на транспортировку 1 тонны материалов поставки,сверх учтенных 200 км (расстояние транспортировки 157 км, работающими вне карьеров)","т",null,null,null,null,null,299.13,0,0]
[13,"Затраты на транспортировку материалов от ж/д станции Ево-Яха до объекта строительства(расстояние транспортировки 157 км, антикорозийные лакокрасочные материалы состава АРСЕТ-Газ-2)","т",0.57920000000000005,null,null,null,null,1096.73,0,0,635.23]
[14,"Кислород","м3",43.315600000000003,null,null,null,null,null,{"$f":"I33*J$17","v":0},{"$f":"J33*D33","v":0}]
[15,"Уайт-спирит","т",0.46300000000000002,null,null,null,null,null,{"$f":"I34*J$17","v":0},{"$f":"J34*D34","v":0}]
[16,"Электроды","т",0.11260000000000001,null,null,null,null,null,{"$f":"I35*J$17","v":0},{"$f":"J35*D35","v":0}]
[17,"Ветошь","кг",72.400000000000006,null,null,null,null,null,{"$f":"I36*J$17","v":0},{"$f":"J36*D36","v":0}]
[18,"Трубы стальные электросварные прямошовные и спирально-шовные больших диаметров группы А и Б с сопротивлением по разрыву 38 кгс/мм2 наружный диаметр 530 мм толщина стенки 10 мм","м",2.3090000000000002,null,null,null,null,null,{"$f":"I37*J$17","v":0},{"$f":"J37*D37","v":0}]
[19,"Трубы бесшовные обсадные из стали группы Д и Б с короткой треугольной резьбой наружный диаметр 273 мм толщина стенки 10,2 мм","м",0.48799999999999999,null,null,null,null,null,{"$f":"I38*J$17","v":0},{"$f":"J38*D38","v":0}]
[20,"Трубы бесшовные обсадные из стали группы Д и Б с короткой треугольной резьбой наружный диаметр 324 мм толщина стенки 11 мм","м",26.63,null,null,null,null,null,{"$f":"I39*J$17","v":0},{"$f":"J39*D39","v":0}]
[21,"Песок металлический","т",8.6869999999999994,null,null,null,null,null,{"$f":"I40*J$17","v":0},{"$f":"J40*D40","v":0}]

{"sheet":"стало","index":2,"n_rows":40,"n_cols":12,"rows_kept":40,"cut":false,"hidden":false,"merged":[]}
[]
[]
[]
[]
[]
[]
[]
[]
[]
[]
[]
[]
[]
[]
[]
[]
[null,null,null,null,null,null,null,null,null,null,null,{"$f":"IF(ISBLANK(I20),\"НЕТ СТОИМОСТНЫХ МАТЕРИАЛОВ!\",\"\")","v":""}]
["П/п","Наименование ресурса","Единица измерения","Расход по норме","Фактич. количество","Экономия (+), перерасход (-)","Списать на себестоимость","Код материала","Цена за ед в базе","Цена за ед в текущих","Всего в текущих ценах","Всего в базе"]
[1,2,3,4,5,6,7,8,9,10,11,12]
[1,"Грунт-эмаль \"СБЭ-111\"Унипол марки Б\" ТУ 2312-001-59846005-2003","кг",579.16099999999994,null,null,null,null,134.54,{"$f":"I20*J$17","v":0},{"$f":"J20*D20","v":0},77920.320000000007]
[{"$f":"IF($B21=\"\",\"\",MAX($A$20:A20)+1)","v":2},"Трубы стальные бесшовные горячедеформированные O159х8 ГОСТ 8732-78, 8731-74В, 100% УЗК, гарантия гидродавления, при тл. стенки более или равно 5мм фаска, сталь 09Г2С","т",1.6080000000000001,null,null,null,null,39211.760000000002,{"$f":"I21*J$17","v":0},{"$f":"J21*D21","v":0},63052.51]
[{"$f":"IF($B22=\"\",\"\",MAX($A$20:A21)+1)","v":3},"Трубы стальные бесшовные горячедеформированные, ГОСТ 8732-78, ГОСТ 8731-74, наружный диаметр (толщина стенки) -219(8) мм, из стали марки 09Г2С.","т",115.628,null,null,null,null,36696.6,0,0,4243154.46]
[{"$f":"IF($B23=\"\",\"\",MAX($A$20:A22)+1)","v":4},"Трубы стальные бесшовные горячедеформированные, ГОСТ 8732-78, ГОСТ 8731-74, наружный диаметр (толщина стенки) -426(8) мм, из стали марки 09Г2С.","т",24.698,null,null,null,null,38158.9,0,0,942448.51]
[{"$f":"IF($B24=\"\",\"\",MAX($A$20:A23)+1)","v":5},"Трубы стальные бесшовные горячедеформированные, ГОСТ 8732-78, ГОСТ 8731-74, наружный диаметр (толщина стенки) -325(9) мм, из стали марки 09Г2С.(д.325х8 мм)","т",10.693,null,null,null,null,34675.379999999997,0,0,370783.84]
[{"$f":"IF($B25=\"\",\"\",MAX($A$20:A24)+1)","v":6},"Бетон тяжелый, крупность заполнителя 20 мм, класс В 20 (М250)","м3",71.013999999999996,null,null,null,null,12199.47,0,0,866333.16]
[{"$f":"IF($B26=\"\",\"\",MAX($A$20:A25)+1)","v":7},"Дополнительные расходы на транспортировку 1 тонны материалов поставки...","т",-327.95530000000002,null,null,null,null,265.79000000000002,0,0,-86825.75]
[{"$f":"IF($B27=\"\",\"\",MAX($A$20:A26)+1)","v":8},"Дополнительные расходы на транспортировку 1 тонны материалов поставки подрядчиа,сверх учтенных 200 км (расстояние транспортировки 157 км, 3 класс грузов)","т",-0.58709999999999996,null,null,null,null,443.87,0,0,-260.60000000000002]
[{"$f":"IF($B28=\"\",\"\",MAX($A$20:A27)+1)","v":9},"Дополнительные расходы на транспортировку 1 тонны материалов поставки подрядчиа,сверх учтенных 200 км (расстояние транспортировки 157 км,2 класс грузов)","т",-0.94,null,null,null,null,332.24,0,0,-312.31]
[{"$f":"IF($B29=\"\",\"\",MAX($A$20:A28)+1)","v":10},"Дополнительные расходы на транспортировку 1 тонны материалов поставки подрядчика,сверх учтенных 200 км (расстояние транспортировки 157 км,1 класс грузов, кроме м/к)","т",-170.44239999999999,null,null,null,null,265.79000000000002,0,0,-45301.89]
[{"$f":"IF($B30=\"\",\"\",MAX($A$20:A29)+1)","v":11},"Дополнительные расходы на транспортировку 1 тонны материалов поставки подрядчика,сверх учтенных 200 км (расстояние транспортировки 157 км,1 класс грузов, м/к)","т",-155.98580000000001,null,null,null,null,262.52999999999997,0,0,-40950.949999999997]
[{"$f":"IF($B31=\"\",\"\",MAX($A$20:A30)+1)","v":12},"Дополнительные расходы на транспортировку 1 тонны материалов поставки,сверх учтенных 200 км (расстояние транспортировки 157 км, работающими вне карьеров)","т",null,null,null,null,null,299.13,0,0]
[{"$f":"IF($B32=\"\",\"\",MAX($A$20:A31)+1)","v":13},"Затраты на транспортировку материалов от ж/д станции Ево-Яха до объекта строительства(расстояние транспортировки 157 км, антикорозийные лакокрасочные материалы состава АРСЕТ-Газ-2)","т",0.57920000000000005,null,null,null,null,1096.73,0,0,635.23]
[{"$f":"IF($B33=\"\",\"\",MAX($A$20:A32)+1)","v":14},"Кислород","м3",43.315600000000003,null,null,null,null,null,{"$f":"I33*J$17","v":0},{"$f":"J33*D33","v":0}]
[{"$f":"IF($B34=\"\",\"\",MAX($A$20:A33)+1)","v":15},"Уайт-спирит","т",0.46300000000000002,null,null,null,null,null,0,0]
[{"$f":"IF($B35=\"\",\"\",MAX($A$20:A34)+1)","v":16},"Электроды","т",0.11260000000000001,null,null,null,null,null,0,0]
[{"$f":"IF($B36=\"\",\"\",MAX($A$20:A35)+1)","v":17},"Ветошь","кг",72.400000000000006,null,null,null,null,null,0,0]
[{"$f":"IF($B37=\"\",\"\",MAX($A$20:A36)+1)","v":18},"Трубы стальные электросварные прямошовные и спирально-шовные больших диаметров группы А и Б с сопротивлением по разрыву 38 кгс/мм2 наружный диаметр 530 мм толщина стенки 10 мм","м",2.3090000000000002,null,null,null,null,null,0,0]
[{"$f":"IF($B38=\"\",\"\",MAX($A$20:A37)+1)","v":19},"Трубы бесшовные обсадные из стали группы Д и Б с короткой треугольной резьбой наружный диаметр 273 мм толщина стенки 10,2 мм","м",0.48799999999999999,null,null,null,null,null,0,0]
[{"$f":"IF($B39=\"\",\"\",MAX($A$20:A38)+1)","v":20},"Трубы бесшовные обсадные из стали группы Д и Б с короткой треугольной резьбой наружный диаметр 324 мм толщина стенки 11 мм","м",26.63,null,null,null,null,null,0,0]
[{"$f":"IF($B40=\"\",\"\",MAX($A$20:A39)+1)","v":21},"Песок металлический","т",8.6869999999999994,null,null,null,null,null,0,0]